fUST/lending_fUST_20240812
["ID","MTS","AMOUNT","RATE_DAILY","PERIOD"]
[334655898,1723403447154,-153.0,0.00018994,2]
[334655899,1723403447163,-294.6834504,0.00018994,2]
[334655900,1723403447173,-267.9126531,0.00018994,2]
[334655901,1723403447183,-153.0,0.00018994,2]
[334655902,1723403447193,-315.6126119,0.00018994,2]
[334655903,1723403447203,-267.5814013,0.00018994,2]
[334655904,1723403447213,-586.9996711,0.00018994,2]
[334655905,1723403447224,-588.1726466,0.00018994,2]
[334655906,1723403447234,-294.6834504,0.00018994,2]
[334655907,1723403447244,-294.6834504,0.00018994,2]
[334655908,1723403447253,-154.76012181,0.00018999,2]
[334655909,1723403447263,-301.25996446,0.00018999,2]
[334655910,1723403447273,-1000.0,0.00019,19]
[334655911,1723403447283,-150.112233,0.00019,2]
[334655912,1723403447292,-150.112233,0.00019,2]
[334655913,1723403447302,-150.112233,0.00019,2]
[334655914,1723403447311,-613.0,0.00019,2]
[334655915,1723403447320,-1000.0,0.00019,2]
[334655916,1723403447331,-150.112233,0.00019,2]
[334655917,1723403447340,-189.077939,0.00019003,2]
[334655918,1723403447350,-189.077939,0.00019003,2]
[334655919,1723403447360,-587.0,0.00019005,2]
[334655920,1723403447369,-472.6696037,0.00019012,2]
[334655921,1723403447379,-1000.0,0.00019016,2]
[334655922,1723403447389,-1000.0,0.00019017,2]
[334655923,1723403447398,-1000.0,0.00019019,2]
[334655924,1723403447409,-1026.25043846,0.0001902,2]
[334655925,1723403447418,-1000.0,0.00019022,2]
[334655926,1723403447428,-1000.0,0.00019024,2]
[334655927,1723403447438,-1000.0,0.00019026,2]
[334655928,1723403447447,-151.0,0.00019029,2]
[334655929,1723403447458,-1000.0,0.00019032,2]
[334655930,1723403447471,-250.0,0.00019041,2]
[334655931,1723403447490,-1000.0,0.00019044,2]
[334655932,1723403447500,-151.0,0.00019066,2]
[334655933,1723403447509,-174.520771,0.00019066,2]
[334655934,1723403447519,-174.520771,0.00019066,2]
[334655935,1723403447530,-189.077939,0.00019066,2]
[334655936,1723403447540,-189.077939,0.00019066,2]
[334655937,1723403447549,-1000.0,0.00019066,2]
[334655938,1723403447559,-1000.0,0.00019067,2]
[334655939,1723403447570,-1000.0,0.00019095,2]
[334655940,1723403447580,-150.112233,0.000191,2]
[334655941,1723403447590,-151.0,0.00019119,2]
[334655942,1723403447600,-174.520771,0.00019119,2]
[334655943,1723403447610,-174.520771,0.00019119,2]
[334655944,1723403447620,-189.077939,0.00019119,2]
[334655945,1723403447629,-189.077939,0.00019119,2]
[334655946,1723403447639,-300.0,0.00019138,2]
[334655947,1723403447648,-151.0,0.00019149,2]
[334655948,1723403447658,-154.76012181,0.00019153,2]
[334655949,1723403447667,-497.91251604,0.00019157,2]
[334655950,1723403447677,-151.0,0.00019159,2]
[334655951,1723403447687,-1000.0,0.00019162,2]
[334655952,1723403447696,-65005.05037833,0.00019169,2]
[334655953,1723403448116,-160.17752587,0.00018346,2]
[334655954,1723403448125,-5022.82247413,0.00019169,2]
[334655956,1723403670673,200.0,0.00027,120]
[334656010,1723404443221,-932.99527997,0.00016309,2]
[334656011,1723404443249,-475.79267256,0.00016475,2]
[334656012,1723404451133,-105.19044695,0.00016475,2]
[334656013,1723404451160,-941.67710789,0.00016575,2]
[334656166,1723404633940,-1349.999989,0.00016347,2]
[334656421,1723404639180,-2953.07841241,0.00016347,2]
[334656568,1723404643377,-1088.91415993,0.00016347,2]
[334656603,1723404646919,-1057.369705,0.00016347,2]
[334656606,1723404646936,-423.81688255,0.00016347,2]
[334656608,1723404646950,-3802.11696464,0.00016347,2]
[334656609,1723404647011,-1563.999095,0.00016347,2]
[334656610,1723404647025,-8538.0808664,0.00016347,2]
[334656611,1723404647036,-2155.10273751,0.00016575,2]
[334656612,1723404647047,-192.686299,0.00016582,2]
[334656613,1723404647058,-192.686299,0.00016628,2]
[334656614,1723404647068,-192.686299,0.00016673,2]
[334656615,1723404647081,-192.686299,0.00016719,2]
[334656616,1723404647092,-192.686299,0.00016764,2]
[334656617,1723404647103,-192.686299,0.0001681,2]
[334656618,1723404647116,-192.686299,0.00016855,2]
[334656619,1723404647127,-192.686299,0.00016901,2]
[334656620,1723404647140,-192.686299,0.00016946,2]
[334656621,1723404647153,-192.686299,0.00016992,2]
[334656622,1723404647164,-300.0,0.00017018,2]
[334656623,1723404647174,-192.686299,0.00017037,2]
[334656624,1723404647185,-192.686299,0.00017082,2]
[334656625,1723404647196,-192.686299,0.00017128,2]
[334656626,1723404647207,-192.686299,0.00017173,2]
[334656627,1723404647220,-192.686299,0.00017219,2]
[334656628,1723404647231,-192.686299,0.00017264,2]
[334656629,1723404647242,-192.686299,0.0001731,2]
[334656630,1723404647253,-192.686299,0.00017355,2]
[334656631,1723404647264,-153.0,0.000174,2]
[334656632,1723404647275,-192.686299,0.00017401,2]
[334656633,1723404647286,-192.686299,0.00017446,2]
[334656634,1723404647296,-151.0,0.00017506,2]
[334656635,1723404647307,-153.0,0.00017671,2]
[334656636,1723404647318,-153.0,0.00017671,2]
[334656637,1723404647329,-207.3044688,0.00017671,2]
[334656638,1723404647340,-153.0,0.00017678,2]
[334656639,1723404647351,-8836.92013464,0.00017882,2]
[334656640,1723404647362,-4696.82653537,0.00017925,2]
[334656641,1723404647376,-263.12333172,0.00017925,2]
[334656642,1723404647387,-9430.85260519,0.00018,2]
[334656643,1723404647398,-251.64143621,0.00018,2]
[334656644,1723404647409,-12640.38108741,0.00018168,2]
[334656645,1723404647421,-294.6834504,0.00018172,2]
[334656646,1723404647431,-294.4608144,0.00018172,2]
[334656647,1723404647445,-500.0,0.00018177,7]
[334656648,1723404647456,-500.0,0.00018177,7]
[334656649,1723404647469,-500.0,0.00018177,7]
[334656650,1723404647480,-500.0,0.00018177,7]
[334656651,1723404647491,-500.0,0.00018177,7]
[334656652,1723404647502,-194.18,0.00018177,7]
[334656653,1723404647513,-151.0,0.000182,2]
[334656654,1723404647524,-151.0,0.000182,2]
[334656655,1723404647536,-151.0,0.00018216,2]
[334656656,1723404647547,-2000.0,0.0001824,2]
[334656657,1723404647558,-1581.83300919,0.00018245,2]
[334656658,1723404647569,-161.217238,0.00018268,2]
[334656659,1723404647579,-150.112233,0.000183,2]
[334656660,1723404647591,-150.112234,0.000183,2]
[334656661,1723404647601,-2164.45800918,0.00018302,2]
[334656662,1723404647612,-1163.86062826,0.00018302,2]
[334656663,1723404647623,-1587.07609115,0.00018316,3]
[334656664,1723404647634,-80612.6764486,0.00018336,2]
[334656665,1723404647645,-500.0,0.00018348,2]
[334656666,1723404647656,-500.0,0.00018348,2]
[334656667,1723404647667,-500.0,0.00018348,2]
[334656668,1723404647678,-186.14215811,0.00018348,2]
[334656669,1723404647689,-500.0,0.00018348,2]
[334656670,1723404647700,-500.0,0.00018348,2]
[334656671,1723404647710,-500.0,0.00018348,2]
[334656672,1723404647725,-27121.79300172,0.00018349,2]
[334656673,1723404647736,-161225.352897,0.00018349,2]
[334656674,1723404647747,-151.0,0.00018359,2]
[334656675,1723404647759,-151.0,0.00018359,2]
[334656676,1723404647770,-185.270145,0.00018359,2]
[334656677,1723404647781,-185.270145,0.00018359,2]
[334656678,1723404647792,-151.0,0.00018359,2]
[334656679,1723404647804,-151.0,0.00018359,2]
[334656680,1723404647815,-151.0,0.00018359,2]
[334656681,1723404647826,-550.376548,0.00018359,2]
[334656682,1723404647837,-550.376548,0.00018359,2]
[334656683,1723404647847,-151.0,0.00018359,2]
[334656684,1723404647859,-151.0,0.00018359,2]
[334656685,1723404647870,-151.0,0.00018359,2]
[334656686,1723404647881,-151.0,0.00018359,2]
[334656687,1723404647893,-151.0,0.00018359,2]
[334656688,1723404647903,-151.0,0.00018359,2]
[334656689,1723404647913,-151.0,0.00018359,2]
[334656690,1723404647925,-250.764683,0.00018359,2]
[334656691,1723404647934,-151.0,0.00018359,2]
[334656692,1723404647946,-151.0,0.00018359,2]
[334656693,1723404647957,-1038.03045852,0.00018359,2]
[334656694,1723404740436,500.0,0.00027,120]
[334656713,1723405633124,-1364.59246336,0.00016038,2]
[334656714,1723405633146,-180.63105164,0.0001611,2]
[334656715,1723405633168,-176.3835269,0.00016159,2]
[334656716,1723405633404,-357.9965019,0.00016159,2]
[334656717,1723405633426,-159.38116829,0.00016347,2]
[334656718,1723405633448,-309.11885378,0.00016347,2]
[334656719,1723405633468,-277.43269753,0.00016532,2]
[334656720,1723405633488,-269.65614473,0.00016532,7]
[334656721,1723405633509,-1372.6003471,0.0001688,2]
[334656722,1723405633530,-816.94684465,0.00017019,3]
[334656723,1723405633553,-162.28047265,0.00017379,2]
[334656724,1723405633573,-504.87671471,0.00017379,2]
[334656725,1723405641110,-96.48035609,0.00017379,2]
[334656726,1723405641131,-154.76012181,0.00017389,2]
[334656727,1723405641152,-367.5148355,0.00017562,2]
[334656728,1723405641177,-1091.84194793,0.00018125,2]
[334656779,1723405831877,-862.47690676,0.00017535,2]
[334656888,1723405838116,-1151.72909844,0.00017535,2]
[334656889,1723405838125,-154.76012181,0.00017555,2]
[334656890,1723405838135,-154.76012181,0.00017555,2]
[334656891,1723405838143,-153.0,0.00018172,2]
[334656892,1723405838155,-153.0,0.00018172,2]
[334656893,1723405838164,-153.0,0.00018172,2]
[334656894,1723405838173,-150.112233,0.000182,2]
[334656895,1723405838182,-300.0,0.00018299,2]
[334656896,1723405838191,-300.0,0.00018299,2]
[334656897,1723405838200,-470665.11701449,0.000183,2]
[334656913,1723405840117,-21647.71626451,0.000183,2]
[334656914,1723405840132,-22605.0,0.000183,2]
[334656915,1723405840142,-3090.31067256,0.00018302,2]
[334656916,1723405840152,-150.0,0.00018308,2]
[334656917,1723405840161,-5240.178669,0.00018356,2]
[334656918,1723405840171,-556.5725464,0.000184,2]
[334656919,1723405840181,-150.112233,0.000184,2]
[334656920,1723405840190,-267.9126531,0.000184,2]
[334656921,1723405840199,-207.3044688,0.000184,2]
[334656922,1723405840208,-414.6089376,0.000184,2]
[334656923,1723405840218,-7221.95055115,0.00018447,2]
[334656924,1723405840227,-207.3044688,0.000185,2]
[334656925,1723405840236,-535.8253062,0.000185,2]
[334656926,1723405840245,-207.3044688,0.000185,2]
[334656927,1723405840254,-500.0,0.00018532,2]
[334656928,1723405840263,-150.112233,0.000186,2]
[334656929,1723405840273,-181.9,0.00018602,2]
[334656930,1723405840284,-155.0,0.0001864,2]
[334656931,1723405840294,-1109.82295728,0.00018679,2]
[334656932,1723405840303,-1765.03360075,0.00018696,2]
[334656933,1723405840311,-150.112233,0.000187,2]
[334656934,1723405840322,-5269.2502104,0.00018718,2]
[334656935,1723405840331,-250.38146921,0.0001872,2]
[334656936,1723405840341,-164.55033868,0.00018799,2]
[334656937,1723405840354,-613.0,0.000188,2]
[334656938,1723405840366,-183.26546668,0.00018825,2]
[334656939,1723405840375,-2000.0,0.0001885,2]
[334656940,1723405840384,-1302.12484223,0.00018865,2]
[334656941,1723405840394,-5203.5035593,0.0001889,2]
[334656942,1723405840403,-150.112233,0.000189,2]
[334656943,1723405840412,-451.25,0.00018904,2]
[334656944,1723405840421,-1302.12484222,0.00018918,2]
[334656945,1723405840431,-181.9,0.00018927,2]
[334656946,1723405840440,-151.0,0.00018927,2]
[334656947,1723405840450,-154.76012181,0.00018945,2]
[334656948,1723405840459,-208.45077666,0.00018945,2]
[334656949,1723405840469,-154.76012181,0.00018945,2]
[334656950,1723405840478,-218.9160296,0.00018945,2]
[334656951,1723405840486,-619.94755947,0.00018965,2]
[334656952,1723405840496,-1302.12484222,0.00018972,2]
[334656953,1723405840506,-294.6834504,0.00018982,2]
[334656954,1723405840515,-294.6834504,0.00018982,2]
[334656955,1723405840525,-294.6834504,0.00018982,2]
[334656956,1723405840534,-294.5666805,0.00018987,2]
[334656957,1723405840544,-203.82880872,0.00018999,2]
[334656958,1723405840555,-154.76012181,0.00018999,2]
[334656959,1723405840564,-150.112233,0.00019,2]
[334656960,1723405840574,-1000.0,0.00019,2]
[334656961,1723405840582,-150.112233,0.00019,2]
[334656962,1723405840592,-500.0,0.00019018,2]
[334656963,1723405840763,-230.29951068,0.00019018,2]
[334656964,1723405840773,-500.0,0.00019018,2]
[334656965,1723405840782,-500.0,0.00019018,2]
[334656966,1723405840792,-500.0,0.00019018,2]
[334656967,1723405840800,-500.0,0.00019018,2]
[334656968,1723405840810,-140176.727968,0.00019019,2]
[334656969,1723405840819,-1302.12484222,0.00019025,2]
[334656970,1723405840828,-13560.89650086,0.00019028,2]
[334656971,1723405840838,-88888.0,0.00019029,2]
[334656972,1723405840848,-1219.651996,0.00019029,2]
[334656973,1723405840857,-1219.651996,0.00019029,2]
[334656974,1723405840867,-151.0,0.00019029,2]
[334656975,1723405840876,-151.0,0.00019029,2]
[334656976,1723405840886,-151.0,0.00019029,2]
[334656977,1723405840895,-151.0,0.00019029,2]
[334656978,1723405840905,-151.0,0.00019029,2]
[334656979,1723405840914,-151.0,0.00019029,2]
[334656980,1723405840923,-151.0,0.00019029,2]
[334656981,1723405840932,-151.0,0.00019029,2]
[334656982,1723405840941,-271.635091,0.00019029,2]
[334656983,1723405840950,-271.635091,0.00019029,2]
[334656984,1723405840959,-435.113706,0.00019029,2]
[334656985,1723405840969,-151.0,0.00019029,2]
[334656986,1723405840978,-435.113706,0.00019029,2]
[334656987,1723405840987,-2062.986564,0.00019029,2]
[334656988,1723405840996,-2062.986564,0.00019029,2]
[334656989,1723405841006,-594.526469,0.00019029,2]
[334656990,1723405841015,-594.526469,0.00019029,2]
[334656991,1723405841024,-2226.999427,0.00019029,2]
[334656992,1723405841033,-2226.999427,0.00019029,2]
[334656993,1723405841042,-737.434419,0.00019029,2]
[334656994,1723405841051,-737.434419,0.00019029,2]
[334656995,1723405841060,-1219.651996,0.00019031,2]
[334656996,1723405841070,-1219.651996,0.00019031,2]
[334656997,1723405841079,-151.0,0.00019031,2]
[334656998,1723405841088,-151.0,0.00019031,2]
[334656999,1723405841097,-151.0,0.00019031,2]
[334657000,1723405841106,-151.0,0.00019031,2]
[334657001,1723405841116,-151.0,0.00019031,2]
[334657002,1723405841125,-151.0,0.00019031,2]
[334657003,1723405841134,-151.0,0.00019031,2]
[334657004,1723405841143,-151.0,0.00019031,2]
[334657005,1723405841153,-271.635091,0.00019031,2]
[334657006,1723405841163,-271.635091,0.00019031,2]
[334657007,1723405841172,-435.113706,0.00019031,2]
[334657008,1723405841181,-151.0,0.00019031,2]
[334657009,1723405841190,-435.113706,0.00019031,2]
[334657010,1723405841199,-2062.986564,0.00019031,2]
[334657011,1723405841208,-2062.986564,0.00019031,2]
[334657012,1723405841217,-594.526469,0.00019031,2]
[334657013,1723405841225,-594.526469,0.00019031,2]
[334657014,1723405841235,-2226.999427,0.00019031,2]
[334657015,1723405841243,-2226.999427,0.00019031,2]
[334657016,1723405841253,-737.434419,0.00019031,2]
[334657017,1723405841262,-737.434419,0.00019031,2]
[334657018,1723405841274,-250.0,0.00019041,2]
[334657019,1723405841283,-1302.12484222,0.00019078,2]
[334657020,1723405841292,-2399.73929532,0.00019078,2]
[334657021,1723405841300,-595.0,0.000191,2]
[334657022,1723405841309,-3000.0,0.000191,2]
[334657023,1723405841320,-150.112233,0.000191,2]
[334657024,1723405841329,-3000.0,0.0001911,2]
[334657025,1723405841338,-291.782762,0.0001912,2]
[334657026,1723405841347,-151.0,0.0001912,2]
[334657027,1723405841357,-151.0,0.0001912,2]
[334657028,1723405841368,-174.520771,0.0001912,2]
[334657029,1723405841377,-151.0,0.0001912,2]
[334657030,1723405841386,-174.520771,0.0001912,2]
[334657031,1723405841395,-185.650924,0.0001912,2]
[334657032,1723405841404,-185.650924,0.0001912,2]
[334657033,1723405841413,-3000.0,0.0001912,2]
[334657034,1723405841422,-343.25998,0.00019129,2]
[334657035,1723405841431,-343.25998,0.00019129,2]
[334657036,1723405841439,-280.509046,0.00019129,2]
[334657037,1723405841448,-280.509046,0.00019129,2]
[334657038,1723405841458,-151.0,0.00019129,2]
[334657039,1723405841467,-151.0,0.00019129,2]
[334657040,1723405841476,-151.0,0.00019129,2]
[334657041,1723405841485,-151.0,0.00019129,2]
[334657042,1723405841494,-151.0,0.00019129,2]
[334657043,1723405841503,-151.0,0.00019129,2]
[334657044,1723405841512,-573.495672,0.00019129,2]
[334657045,1723405841522,-1731.36741,0.00019129,2]
[334657046,1723405841531,-573.495672,0.00019129,2]
[334657047,1723405841541,-1731.36741,0.00019129,2]
[334657048,1723405841554,-3000.0,0.0001913,2]
[334657049,1723405841563,-522.80309354,0.00019139,2]
[334657050,1723405841573,-157.95166393,0.00019139,2]
[334657051,1723405841582,-522.80309354,0.00019139,2]
[334657052,1723405841593,-3000.0,0.0001914,2]
[334657053,1723405841602,-361.751749,0.0001914,2]
[334657054,1723405841611,-361.751749,0.0001914,2]
[334657055,1723405841622,-567.361721,0.0001914,2]
[334657056,1723405841631,-567.361721,0.0001914,2]
[334657057,1723405841640,-228.432977,0.0001914,2]
[334657058,1723405841649,-228.432977,0.0001914,2]
[334657059,1723405841659,-65223.28264317,0.0001914,2]
[334657060,1723405842099,-1298.85744612,0.0001914,2]
[334657096,1723405846081,-207.3044688,0.000185,2]
[334657097,1723405846093,-250.38146921,0.00018701,2]
[334657098,1723405846102,-186.61459126,0.0001914,2]
[334657099,1723405846114,-86.88143274,0.0001914,2]
[334657100,1723405846124,-391.71719012,0.0001914,2]
[334657101,1723405846136,-3174.50670439,0.0001914,2]
[334657102,1723405846146,-3000.0,0.0001915,2]
[334657103,1723405846155,-1719.42988722,0.00019155,2]
[334657104,1723405846164,-151.0,0.00019158,2]
[334657105,1723405846173,-151.0,0.00019158,2]
[334657106,1723405846182,-174.520771,0.00019158,2]
[334657107,1723405846192,-151.0,0.00019158,2]
[334657108,1723405846201,-174.520771,0.00019158,2]
[334657109,1723405846210,-185.650924,0.00019158,2]
[334657110,1723405846219,-185.650924,0.00019158,2]
[334657111,1723405846229,-3000.0,0.0001916,2]
[334657112,1723405846239,-150.01,0.00019168,2]
[334657113,1723405846251,-3991.4671087,0.00019168,2]
[334657114,1723405846262,-343.25998,0.00019168,2]
[334657115,1723405846276,-343.25998,0.00019168,2]
[334657116,1723405846285,-280.509046,0.00019168,2]
[334657117,1723405846294,-280.509046,0.00019168,2]
[334657118,1723405846303,-151.0,0.00019168,2]
[334657119,1723405846314,-151.0,0.00019168,2]
[334657120,1723405846323,-151.0,0.00019168,2]
[334657121,1723405846333,-151.0,0.00019168,2]
[334657122,1723405846343,-151.0,0.00019168,2]
[334657123,1723405846357,-151.0,0.00019168,2]
[334657124,1723405846365,-151.0,0.00019168,2]
[334657125,1723405846375,-151.0,0.00019168,2]
[334657126,1723405846385,-573.495672,0.00019168,2]
[334657127,1723405846393,-151.0,0.00019168,2]
[334657128,1723405846403,-1731.36741,0.00019168,2]
[334657129,1723405846413,-573.495672,0.00019168,2]
[334657130,1723405846422,-1731.36741,0.00019168,2]
[334657131,1723405846431,-361.751749,0.00019168,2]
[334657132,1723405846441,-361.751749,0.00019168,2]
[334657133,1723405846450,-567.361721,0.00019168,2]
[334657134,1723405846460,-567.361721,0.00019168,2]
[334657135,1723405846469,-228.432977,0.00019168,2]
[334657136,1723405846479,-228.432977,0.00019168,2]
[334657137,1723405846488,-273.496024,0.00019168,2]
[334657138,1723405846498,-13695.99341396,0.00019168,2]
[334657139,1723405846511,-6693.1640257,0.00019168,2]
[334657140,1723405846522,-118469.36917396,0.00019168,2]
[334657141,1723406016584,703.0,0.00027,120]
[334657146,1723406731146,-151.6,0.00018621,2]
[334657147,1723406731168,-9430.85260519,0.00018679,2]
[334657148,1723406731191,-300.0,0.00018762,2]
[334657149,1723406731212,-300.0,0.00018763,2]
[334657150,1723406731232,-645.15952427,0.00018786,2]
[334657151,1723406731253,-155.0,0.0001879,2]
[334657152,1723406731274,-928.71884202,0.00018825,2]
[334657153,1723406731491,-932.99527997,0.00018825,2]
[334657154,1723406731512,-428.6875,0.00018904,2]
[334657155,1723406731532,-846.23163308,0.00018909,2]
[334657156,1723406731553,-650.34646293,0.0001891,2]
[334657157,1723406731577,-472.74737797,0.00018917,2]
[334657158,1723406731599,-151.6,0.00018944,2]
[334657159,1723406731621,-181.95399821,0.00018945,2]
[334657160,1723406731641,-160.7078056,0.0001895,2]
[334657161,1723406731662,-277.43269753,0.00018976,2]
[334657162,1723406731683,-1364.59246336,0.00018979,2]
[334657163,1723406731703,-304.95617813,0.00018989,2]
[334657164,1723406731723,-534.3800288,0.00018999,2]
[334657165,1723406731747,-816.94684465,0.00018999,3]
[334657166,1723406731770,-1151.43470166,0.00019029,2]
[334657167,1723406731790,-250.0,0.00019041,2]
[334657168,1723406731810,-816.94684465,0.00019046,4]
[334657169,1723406731831,-601.3570708,0.00019046,2]
[334657170,1723406731851,-187.38318061,0.00019046,2]
[334657171,1723406731871,-203.12621248,0.00019057,2]
[334657172,1723406731893,-55950.4956658,0.00019058,2]
[334657173,1723406731913,-43314.81889729,0.00019068,2]
[334657175,1723406828142,-151.6,0.00018627,2]
[334657176,1723406828162,-5321.67920991,0.00018779,2]
[334657177,1723406828182,-1000.04055915,0.00018904,2]
[334657178,1723406828202,-1000.0,0.00018905,2]
[334657179,1723406828222,-1000.0,0.00018915,2]
[334657180,1723406828243,-151.6,0.00018949,2]
[334657181,1723406828265,-300.0,0.00018998,2]
[334657182,1723406828285,-449.58291547,0.00018999,2]
[334657183,1723406828306,-1000.0,0.00018999,2]
[334657184,1723406828326,-2000.0,0.00019,2]
[334657185,1723406828347,-4339.95613373,0.00019,2]
[334657186,1723406828374,-1000.0,0.00019003,2]
[334657187,1723406828394,-300.0,0.00019067,2]
[334657188,1723406828414,-191.29076674,0.00019067,2]
[334657189,1723406832112,-154.76012181,0.00018999,2]
[334657190,1723406832139,-11.83544574,0.00019067,2]
[334657191,1723406832161,-45573.18110271,0.00019068,2]
[334657192,1723406832183,-1000.0,0.00019072,2]
[334657193,1723406832204,-1000.0,0.00019077,2]
[334657194,1723406832226,-294.6834504,0.000191,2]
[334657195,1723406832248,-294.6834504,0.000191,2]
[334657196,1723406832270,-267.9126531,0.000191,2]
[334657197,1723406832291,-3000.0,0.000191,2]
[334657198,1723406832316,-267.9126531,0.000191,2]
[334657199,1723406832337,-535.5361377,0.000191,2]
[334657200,1723406832358,-589.3669008,0.000191,2]
[334657201,1723406832381,-207.3044688,0.000191,2]
[334657202,1723406832401,-269.65614473,0.00019102,7]
[334657203,1723406832422,-1000.0,0.00019103,2]
[334657204,1723406832443,-3000.0,0.0001911,2]
[334657205,1723406832464,-3000.0,0.0001912,2]
[334657206,1723406832485,-3000.0,0.0001913,2]
[334657207,1723406832507,-3000.0,0.0001914,2]
[334657208,1723406832528,-3000.0,0.0001915,2]
[334657209,1723406832548,-247.11239451,0.00019153,2]
[334657210,1723406832568,-301.25996446,0.00019155,2]
[334657211,1723406832589,-36575.99654574,0.00019158,2]
[334657212,1723406840163,-449.58291547,0.00018989,2]
[334657213,1723406840187,-4485.19021285,0.00019158,2]
[334657214,1723406847230,-14889.30890721,0.00019158,2]
[334657215,1723406847256,-3000.0,0.0001916,2]
[334657216,1723406847276,-522.80309354,0.00019167,2]
[334657217,1723406847297,-500.0,0.00019167,2]
[334657218,1723406847318,-500.0,0.00019167,2]
[334657219,1723406847339,-411.20965748,0.00019167,2]
[334657220,1723406847359,-500.0,0.00019167,2]
[334657221,1723406847378,-150.01,0.00019168,2]
[334657222,1723406847398,-3991.4671087,0.00019168,2]
[334657223,1723406847419,-134204.89794243,0.00019168,2]
[334657224,1723406853304,-1895.84342119,0.00019168,2]
[334657336,1723407038768,-3280.7845328,0.00018166,2]
[334657337,1723407038777,-155.0,0.0001879,2]
[334657338,1723407038786,-719.46628737,0.00019038,2]
[334657339,1723407038810,-306.78415109,0.00019038,2]
[334657340,1723407038819,-3797.46161697,0.00019067,2]
[334657341,1723407038831,-300.0,0.00019067,2]
[334657342,1723407038840,-300.0,0.00019067,2]
[334657343,1723407038850,-1151.43470166,0.00019068,2]
[334657344,1723407038858,-14876.62515227,0.00019068,2]
[334657345,1723407038882,-15108.74711753,0.00019068,2]
[334657346,1723407038893,-595.0,0.00019068,2]
[334657358,1723407040496,-728.23,0.00019068,2]
[334657359,1723407040508,-250.76972884,0.00019068,2]
[334657360,1723407040550,-1506.15377177,0.00019068,2]
[334657361,1723407040561,-8430.01674593,0.00019068,2]
[334657362,1723407040771,-11843.466826,0.00019068,2]
[334657393,1723407043213,-35548.99065766,0.00019068,2]
[334657395,1723407043223,-1590.35296069,0.00019155,2]
[334657396,1723407043233,-1765.03360075,0.00019155,2]
[334657398,1723407043243,-154.76012181,0.00019155,2]
[334657400,1723407043253,-46347.9338143,0.0001916,2]
[334657401,1723407043262,-500.0,0.00019167,2]
[334657402,1723407043272,-337.84676023,0.00019167,2]
[334657403,1723407043282,-500.0,0.00019167,2]
[334657404,1723407043291,-191.28028495,0.00019168,2]
[334657405,1723407043301,-3991.4671087,0.00019168,2]
[334657406,1723407043310,-769.15114362,0.00019168,2]
[334657494,1723407046279,-91926.71648498,0.00019168,2]
[334657496,1723407046289,-3906.64947989,0.00019169,2]
[334657497,1723407046298,-5444.858335,0.0001917,2]
[334657498,1723407046308,-5240.178669,0.00019177,2]
[334657499,1723407046318,-151.0,0.00019178,2]
[334657500,1723407046328,-151.0,0.00019178,2]
[334657501,1723407046339,-151.0,0.00019178,2]
[334657502,1723407046348,-239.17087,0.00019178,2]
[334657503,1723407046358,-239.17087,0.00019178,2]
[334657504,1723407046368,-151.0,0.00019178,2]
[334657505,1723407046378,-7826.42,0.00019178,2]
[334657506,1723407046387,-7826.42,0.00019178,2]
[334657507,1723407046397,-7826.42,0.00019178,2]
[334657508,1723407046407,-7826.42,0.00019178,2]
[334657509,1723407046416,-7826.42,0.00019178,2]
[334657510,1723407046427,-7826.42,0.00019178,2]
[334657511,1723407046436,-7826.42,0.00019178,2]
[334657513,1723407046445,-7826.42,0.00019178,2]
[334657514,1723407046454,-7826.42,0.00019178,2]
[334657515,1723407046464,-7826.42,0.00019178,2]